bitfinex/quotes_BTCUSD_20240620
["timestamp","ask_amount","ask_price","bid_price","bid_amount"]
[1718884937825,0.16353033,66218.0,66216.0,0.2922]
[1718884937826,0.1807,66219.0,66218.0,0.74963432]
[1718884938034,0.34513749,66219.0,66218.0,0.75207432]
[1718884938229,0.34513749,66219.0,66218.0,0.74963432]
[1718884938439,0.2807,66219.0,66218.0,0.74963432]
[1718884938632,0.24644296,66219.0,66218.0,0.75207432]
[1718884938916,0.16443723,66219.0,66218.0,0.75207432]
[1718884939151,0.06443723,66219.0,66218.0,0.75207432]
[1718884939358,0.06543723,66219.0,66218.0,0.75207432]
[1718884939589,0.06443723,66219.0,66218.0,0.75207432]
[1718884939938,0.06443723,66219.0,66218.0,0.75307432]
[1718884940529,0.06643723,66219.0,66218.0,0.75307432]
[1718884940940,0.06643723,66219.0,66218.0,0.90563544]
[1718884941173,0.06443723,66219.0,66218.0,0.90563544]
[1718884941519,0.06443723,66219.0,66218.0,1.22293544]
[1718884941737,0.06443723,66219.0,66218.0,1.21293544]
[1718884942125,0.06443723,66219.0,66218.0,1.22293544]
[1718884942589,0.05,66255.0,66237.0,0.00244]
[1718884942590,0.02700842,66240.0,66237.0,0.00244]
[1718884942759,0.02700842,66240.0,66239.0,0.00244]
[1718884943001,0.03231694,66248.0,66242.0,0.00244]
[1718884943227,0.01577139,66251.0,66247.0,0.00244]
[1718884943425,0.02330377,66250.0,66246.0,0.00244]
[1718884943625,0.02330377,66250.0,66247.0,0.00244]
[1718884943829,0.02330377,66250.0,66246.0,0.00244]
[1718884944031,0.02330377,66250.0,66244.0,0.00244]
[1718884944242,0.02330377,66250.0,66247.0,0.01006473]
[1718884944243,0.014,66248.0,66247.0,0.01006473]
[1718884944447,0.03730377,66248.0,66242.0,0.001]
[1718884944614,0.1807,66244.0,66239.0,0.1655]
[1718884944818,0.02330377,66243.0,66241.0,0.00244]
[1718884945068,0.02330377,66243.0,66240.0,0.00244]
[1718884945069,0.12330377,66243.0,66240.0,0.00244]
[1718884945269,0.1,66243.0,66234.0,0.13224]
[1718884945513,0.1,66243.0,66238.0,0.00244]
[1718884945722,0.007,66240.0,66236.0,0.00244]
[1718884946115,0.007,66240.0,66233.0,0.1646]
[1718884946320,0.007,66240.0,66233.0,0.16704]
[1718884946321,0.1807,66237.0,66233.0,0.16704]
[1718884946441,0.1807,66237.0,66230.0,0.1377]
[1718884946442,0.1,66236.0,66232.0,0.00244]
[1718884946886,0.1,66236.0,66230.0,0.00244]
[1718884947199,0.1807,66232.0,66231.0,0.00244]
[1718884947404,0.2807,66232.0,66231.0,0.00244]
[1718884947628,0.1,66232.0,66231.0,0.00244]
[1718884948000,0.1,66232.0,66231.0,0.15500112]
[1718884948546,0.1807,66245.0,66235.0,0.00244]
[1718884948749,0.1807,66245.0,66237.0,0.00244]
[1718884948750,0.1,66244.0,66237.0,0.00244]
[1718884948949,0.1807,66240.0,66235.0,0.00244]
[1718884949158,0.1,66239.0,66234.0,0.00244]
[1718884949996,0.1,66239.0,66233.0,0.00244]
[1718884950346,0.03314451,66245.0,66234.0,0.002]
[1718884950347,0.1807,66238.0,66234.0,0.002]
[1718884950663,0.1,66237.0,66234.0,0.002]
[1718884952520,0.06824638,66236.0,66234.0,0.002]
[1718884952721,0.04017638,66235.0,66228.0,0.00244]
[1718884952927,0.1807,66230.0,66228.0,0.00244]
[1718884953145,0.1807,66230.0,66227.0,0.00244]
[1718884953146,0.14017638,66229.0,66227.0,0.00244]
[1718884953347,0.04017638,66228.0,66227.0,0.00244]
[1718884953550,0.04017638,66228.0,66226.0,0.00244]
[1718884953777,0.04017638,66227.0,66225.0,0.00244]
[1718884953979,0.04017638,66227.0,66226.0,0.00244]
[1718884954349,0.03826905,66227.0,66225.0,0.00244]
[1718884954531,0.03826905,66226.0,66225.0,0.00244]
[1718884954916,0.03827227,66228.0,66226.0,0.00244]
[1718884955100,0.001,66227.0,66226.0,0.00544]
[1718884955300,0.001,66227.0,66226.0,0.003]
[1718884955301,0.0392735,66227.0,66226.0,0.003]
[1718884956116,0.0402735,66227.0,66226.0,0.003]
[1718884956329,0.0402735,66227.0,66219.0,0.1738]
[1718884956330,0.0402735,66227.0,66208.0,0.3007]
[1718884956331,0.2326,66226.0,66208.0,0.3007]
[1718884956679,0.1807,66213.0,66209.0,0.46013034]
[1718884956886,0.1807,66213.0,66209.0,0.00244]
[1718884956887,0.0382735,66212.0,66209.0,0.00244]
[1718884957090,0.1382735,66212.0,66210.0,0.01038526]
[1718884957306,0.0382735,66211.0,66210.0,0.01038526]
[1718884957540,0.0382735,66211.0,66209.0,0.00244]
[1718884957737,0.0382735,66211.0,66206.0,0.00244]
[1718884958145,0.0382735,66211.0,66207.0,0.01285536]
[1718884958316,0.0382735,66211.0,66210.0,0.74963432]
[1718884958562,0.1382735,66211.0,66210.0,0.74963432]
[1718884958710,0.1382735,66211.0,66210.0,0.760032]
[1718884959212,0.17935912,66211.0,66210.0,0.760032]
[1718884959544,4.41645962,66211.0,66210.0,0.57852]
[1718884959694,4.41645962,66211.0,66210.0,0.56852]
[1718884959695,1.98631522,66211.0,66210.0,0.56852]
[1718884959897,1.65111505,66211.0,66210.0,0.55812232]
[1718884960097,1.56153462,66211.0,66210.0,0.56853104]
[1718884960325,1.56153462,66211.0,66210.0,0.49553104]
[1718884960326,1.61253462,66211.0,66210.0,0.49553104]
[1718884960499,1.49057997,66211.0,66210.0,0.49126232]
[1718884960755,0.20968939,66211.0,66210.0,0.49126232]
[1718884960921,0.17101885,66211.0,66210.0,0.49370232]
[1718884961132,0.18259502,66211.0,66210.0,0.81406344]
[1718884961327,0.06184967,66211.0,66210.0,0.81406344]
[1718884962546,0.06184967,66211.0,66210.0,0.82406344]
[1718884962768,0.06184967,66211.0,66210.0,0.81406344]
[1718884963172,0.04984967,66211.0,66210.0,0.81406344]
[1718884963572,0.04984967,66211.0,66210.0,0.81500944]
[1718884963772,0.03784967,66211.0,66210.0,0.82500944]
[1718884963952,0.1807,66233.0,66224.0,0.00244]
[1718884964157,0.1807,66233.0,66210.0,0.81256944]
[1718884964158,0.03712052,66232.0,66225.0,0.00244]
[1718884964571,0.0895071,66231.0,66218.0,0.00244]
[1718884964810,0.03712052,66230.0,66229.0,0.00018176]
[1718884964993,0.31782052,66230.0,66229.0,0.00018176]
[1718884965195,1.10538678,66230.0,66229.0,0.00018176]
[1718884965492,4.60231178,66230.0,66229.0,0.00018176]
[1718884966015,4.75486592,66230.0,66229.0,0.00018176]
[1718884966347,4.86411774,66230.0,66229.0,0.00018176]
[1718884966749,2.5246386,66230.0,66229.0,0.00018176]
[1718884966950,2.3246386,66230.0,66229.0,0.00018176]
[1718884967150,2.048858,66230.0,66229.0,0.00018176]
[1718884967377,2.034858,66230.0,66229.0,0.00018176]
[1718884967584,1.707858,66230.0,66229.0,0.00018176]
[1718884967743,1.82963346,66230.0,66229.0,7.6e-07]
[1718884967947,1.99840119,66230.0,66229.0,7.6e-07]
[1718884968175,0.23490618,66230.0,66229.0,7.6e-07]
[1718884968381,0.32782052,66230.0,66229.0,7.6e-07]
[1718884968589,0.15812052,66230.0,66229.0,7.6e-07]
[1718884968791,0.15812052,66230.0,66229.0,0.00244076]
[1718884968996,0.04712052,66230.0,66229.0,0.01278183]
[1718884969193,0.03712052,66230.0,66229.0,0.01278183]
[1718884969419,0.03712052,66230.0,66229.0,0.00244076]
[1718884969620,0.05012052,66230.0,66229.0,0.00244076]
[1718884969827,0.1349,66229.0,66217.0,0.00244]
[1718884970049,0.1807,66224.0,66217.0,0.00244]
[1718884970249,0.03712052,66223.0,66219.0,0.00244]
[1718884970453,0.03712052,66223.0,66216.0,0.1307]
[1718884970454,0.03712052,66222.0,66220.0,0.00244]
[1718884970670,0.1,66223.0,66221.0,0.00244]
[1718884970859,0.1,66223.0,66216.0,0.1307]
[1718884970860,0.03574552,66222.0,66217.0,0.00244]
[1718884971030,0.03574552,66222.0,66221.0,0.00244]
[1718884971436,0.03574552,66222.0,66218.0,0.00244]
[1718884971712,0.03574552,66222.0,66221.0,0.0103927]
[1718884971915,0.03574552,66222.0,66220.0,0.00244]
[1718884972121,0.03574552,66222.0,66218.0,0.00244]
[1718884972299,0.03574552,66222.0,66214.0,0.1758]
[1718884972300,0.53574552,66222.0,66221.0,0.0103927]
[1718884972447,0.1807,66219.0,66211.0,0.14074]
[1718884972791,0.13574552,66218.0,66213.0,0.00244]
[1718884972968,0.13574552,66218.0,66214.0,0.00244]
[1718884972969,0.03574552,66217.0,66214.0,0.00244]
[1718884973203,0.03574552,66217.0,66211.0,0.1383]
[1718884973204,0.03574552,66217.0,66213.0,0.00244]
[1718884973372,0.03574552,66217.0,66214.0,0.00244]
[1718884974393,0.03748199,66216.0,66213.0,0.00244]
[1718884974617,0.03748199,66215.0,66213.0,0.00244]
[1718884974772,0.03748199,66214.0,66213.0,0.00244]
[1718884974978,0.03748199,66216.0,66213.0,0.00244]
[1718884975201,0.03748199,66216.0,66212.0,0.00244]
[1718884975403,0.03748199,66216.0,66214.0,0.00244]
[1718884975603,0.03748199,66216.0,66213.0,0.00244]
[1718884976052,0.03748199,66216.0,66210.0,0.4817996]
[1718884976053,0.03748199,66216.0,66212.0,0.00244]
[1718884976254,0.03748199,66216.0,66210.0,0.4842396]
[1718884976458,0.03748199,66215.0,66212.0,0.00244]
[1718884976747,0.03748199,66214.0,66212.0,0.00244]
[1718884976949,0.03673469,66213.0,66212.0,0.00244]
[1718884977524,0.03673469,66215.0,66212.0,0.00244]
[1718884977777,0.03673469,66215.0,66214.0,0.00244]
[1718884982869,0.03673469,66215.0,66210.0,0.4817996]
[1718884982870,0.21743469,66215.0,66210.0,0.4817996]
[1718884983074,0.03673469,66214.0,66210.0,0.4817996]
[1718884983489,0.03673469,66213.0,66210.0,0.4817996]
[1718884983834,0.1,66214.0,66210.0,0.4817996]
[1718884983835,0.03673469,66212.0,66210.0,0.4817996]
[1718884983964,0.03673469,66211.0,66210.0,0.48175096]
[1718884984425,0.21743469,66211.0,66210.0,0.49222258]
[1718884984622,0.31743469,66211.0,66210.0,0.49222258]
[1718884987113,0.13673469,66211.0,66210.0,0.49466258]
[1718884987319,0.13873469,66211.0,66210.0,0.79059096]
[1718884987519,0.03873469,66211.0,66210.0,0.80107489]
[1718884989090,0.03873469,66211.0,66210.0,0.79775282]
[1718884991815,0.03873469,66211.0,66210.0,0.95031394]
[1718884992269,0.03873469,66211.0,66210.0,0.96031394]
[1718884994128,0.03873469,66211.0,66210.0,0.95031394]
[1718884994701,0.03873469,66211.0,66210.0,0.79775282]
[1718884995141,0.09325477,66219.0,66210.0,0.79775282]
[1718884995342,0.13423956,66224.0,66218.0,0.00244]
[1718884995545,0.31493956,66224.0,66219.0,0.00244]
[1718884995743,0.1807,66224.0,66219.0,0.00244]
[1718884996756,0.886945,66211.0,66210.0,0.78815096]
[1718884997161,0.986945,66211.0,66210.0,0.7953074]
[1718884998547,0.986945,66211.0,66210.0,0.4889074]
[1718884999312,0.987945,66211.0,66210.0,0.4909074]
[1718884999473,0.988945,66211.0,66210.0,0.4909074]
[1718885000088,1.169645,66211.0,66210.0,0.4909074]
[1718885000348,1.169645,66211.0,66210.0,0.48375096]
[1718885000707,1.169645,66211.0,66210.0,0.49090813]
[1718885001110,1.312145,66211.0,66210.0,0.49090813]
[1718885001512,2.779145,66211.0,66210.0,0.48375096]
[1718885001717,3.03503852,66211.0,66210.0,0.48375096]
[1718885002113,2.82503852,66211.0,66210.0,0.48375096]
[1718885002537,2.82403852,66211.0,66210.0,0.48175096]
[1718885002738,2.65539038,66211.0,66210.0,0.48175096]
[1718885002939,1.51731652,66211.0,66210.0,0.48175096]
[1718885003140,0.987945,66211.0,66210.0,0.48175096]
[1718885003352,0.986945,66211.0,66210.0,0.48890906]
[1718885003543,0.994945,66211.0,66210.0,0.48890906]
[1718885004133,0.990945,66211.0,66210.0,0.48175096]
[1718885004551,1.02691774,66211.0,66210.0,0.48890984]
[1718885004968,1.02291774,66211.0,66210.0,0.48890984]
[1718885005141,1.05787626,66211.0,66210.0,0.48890984]
[1718885005341,1.05387626,66211.0,66210.0,0.48890984]
[1718885005739,1.05587626,66211.0,66210.0,0.48890984]
[1718885005952,1.05387626,66211.0,66210.0,0.48890984]
[1718885006158,1.23457626,66211.0,66210.0,0.48890984]
[1718885006361,1.23857626,66211.0,66210.0,0.48890984]
[1718885007076,1.50357626,66211.0,66210.0,0.48890984]
[1718885007278,1.49957626,66211.0,66210.0,0.48175096]
[1718885007519,1.49957626,66211.0,66210.0,0.48891378]
[1718885007688,1.50257626,66211.0,66210.0,0.48891378]
[1718885007895,1.50257626,66211.0,66210.0,0.48175096]
[1718885008097,1.49957626,66211.0,66210.0,0.48175096]
[1718885008302,1.49957626,66211.0,66210.0,0.4889137]
[1718885008475,1.50357626,66211.0,66210.0,0.4889137]
[1718885008661,1.51557626,66211.0,66210.0,0.4889137]
[1718885008867,1.50357626,66211.0,66210.0,0.48175096]
[1718885009066,1.49957626,66211.0,66210.0,0.4889137]
[1718885009270,1.2064391,66211.0,66210.0,0.4889137]
[1718885009709,1.06287626,66211.0,66210.0,0.4889137]
[1718885010049,1.07187626,66211.0,66210.0,0.4889137]
[1718885010374,1.06287626,66211.0,66210.0,0.4889137]
[1718885010580,1.06887626,66211.0,66210.0,0.4889137]
[1718885010818,1.05987626,66211.0,66210.0,0.4889137]
[1718885011222,1.06887626,66211.0,66210.0,0.4889137]
[1718885011600,1.06256754,66211.0,66210.0,0.4889137]
[1718885012007,1.06856754,66211.0,66210.0,0.4889137]
[1718885012317,1.06256754,66211.0,66210.0,0.4889137]
[1718885013052,1.05656754,66211.0,66210.0,0.4889137]
[1718885014202,1.06656754,66211.0,66210.0,0.4889137]
[1718885014759,1.06156754,66211.0,66210.0,0.4889137]
[1718885015194,1.06456754,66211.0,66210.0,0.4889137]
[1718885015793,1.05956754,66211.0,66210.0,0.4889137]
[1718885016074,1.06156754,66211.0,66210.0,0.4889137]
[1718885016397,1.05956754,66211.0,66210.0,0.4889137]
[1718885016599,1.05956754,66211.0,66210.0,0.6591137]
[1718885016799,1.06156754,66211.0,66210.0,0.65911292]
[1718885019108,1.02391774,66211.0,66210.0,0.65911292]
[1718885019311,1.06254706,66211.0,66210.0,0.65911292]
[1718885019988,1.06254706,66211.0,66210.0,0.48891292]
[1718885020135,1.06054706,66211.0,66210.0,0.48891292]
[1718885021204,1.05754706,66211.0,66210.0,0.67261292]
[1718885023014,1.05754706,66211.0,66210.0,0.80931292]
[1718885023230,1.05754706,66211.0,66210.0,0.98187404]
[1718885023420,1.05754706,66211.0,66210.0,1.26357404]
[1718885023421,0.40987432,66211.0,66210.0,1.26357404]
[1718885023631,0.40987432,66211.0,66210.0,1.31457404]
[1718885023960,0.40987432,66211.0,66210.0,1.47377404]
[1718885024155,0.40987432,66211.0,66210.0,1.62838034]
[1718885024361,0.40987432,66211.0,66210.0,1.29664634]
[1718885024564,0.40987432,66211.0,66210.0,1.47734634]
[1718885024788,0.41087432,66211.0,66210.0,1.47734634]
[1718885025497,0.40987432,66211.0,66210.0,2.28251834]
[1718885026056,0.372245,66211.0,66210.0,2.28251834]
[1718885026734,0.373245,66211.0,66210.0,2.28751834]
[1718885026848,0.046745,66211.0,66210.0,2.58958734]
[1718885027054,0.03096788,66242.0,66241.0,0.02]
[1718885027254,0.03096788,66242.0,66241.0,0.18307025]
[1718885027255,0.01997311,66242.0,66241.0,0.18307025]
[1718885027462,0.00086,66248.0,66245.0,0.02]
[1718885027663,0.07709401,66246.0,66245.0,0.03047784]
[1718885028897,0.07809401,66246.0,66245.0,0.03047784]
[1718885029350,0.04796902,66246.0,66245.0,0.01047784]
[1718885029674,0.04781049,66246.0,66245.0,0.01047784]
[1718885030113,0.01741048,66246.0,66245.0,0.49995791]
[1718885030329,0.01741048,66246.0,66245.0,0.68065791]
[1718885030732,0.001,66246.0,66245.0,0.68065791]
[1718885030937,0.001,66246.0,66245.0,0.49995791]
[1718885031358,0.002,66246.0,66245.0,0.60995791]
[1718885031779,0.002,66246.0,66245.0,0.50795791]
[1718885032181,0.002,66246.0,66245.0,0.60995791]
[1718885032391,0.002,66246.0,66245.0,0.50795791]
[1718885033120,0.002,66246.0,66245.0,0.50493896]
[1718885034756,0.002,66246.0,66245.0,1.01709296]
[1718885035066,0.027835,66277.0,66259.0,0.3125]
[1718885035267,0.01577139,66272.0,66259.0,0.46506112]
[1718885035547,0.03188379,66269.0,66259.0,0.47540292]
[1718885036454,0.00186,66260.0,66259.0,0.47940292]
[1718885036645,0.00086,66260.0,66259.0,0.47540292]
[1718885036968,0.00186,66260.0,66259.0,0.47940292]
[1718885037377,0.00086,66260.0,66259.0,0.95620788]
[1718885037650,0.00186,66260.0,66259.0,0.96020788]
[1718885038379,0.00186,66260.0,66259.0,0.97420788]
[1718885038759,0.00186,66260.0,66259.0,0.96020788]
[1718885039174,0.00186,66260.0,66259.0,0.97420788]
[1718885040987,0.00186,66260.0,66259.0,0.95420788]
[1718885041208,0.00186,66260.0,66259.0,0.50914676]
[1718885041406,0.13696,66260.0,66259.0,0.50914676]
[1718885041607,0.10186,66260.0,66259.0,0.50914676]
[1718885042013,0.10186,66260.0,66259.0,0.97950788]
[1718885042221,0.10186,66260.0,66259.0,0.96550788]
[1718885042665,0.00086,66260.0,66259.0,0.97550788]
[1718885043180,0.00186,66260.0,66259.0,0.65770788]
[1718885043393,0.00086,66260.0,66259.0,0.64370788]
[1718885043595,0.00086,66260.0,66259.0,0.49114676]
[1718885043820,0.00186,66260.0,66259.0,0.49714676]
[1718885044025,0.00086,66260.0,66259.0,0.49114676]
[1718885044461,0.00186,66260.0,66259.0,0.50514676]
[1718885045375,0.00186,66260.0,66259.0,0.51014676]
[1718885045747,0.00186,66260.0,66259.0,0.50514676]
[1718885045948,0.47766,66260.0,66259.0,0.48579549]
[1718885046152,0.47766,66260.0,66259.0,0.46477249]
[1718885046355,0.58849287,66260.0,66259.0,0.46477249]
[1718885046556,0.58749287,66260.0,66259.0,0.44577249]
[1718885046957,0.58849287,66260.0,66259.0,0.44013312]
[1718885047297,0.58749287,66260.0,66259.0,0.43313312]
[1718885047502,0.58749287,66260.0,66259.0,0.43613312]
[1718885048355,0.40679287,66260.0,66259.0,0.43613312]
[1718885048559,0.40679287,66260.0,66259.0,0.43113312]
[1718885048792,0.39596,66260.0,66259.0,0.43113312]
[1718885048996,0.39596,66260.0,66259.0,0.43213312]
[1718885049179,0.40572501,66260.0,66259.0,0.43213312]
[1718885050151,0.11062501,66260.0,66259.0,0.43213312]
[1718885050353,0.00086,66260.0,66259.0,0.58469424]
[1718885050780,0.00086,66260.0,66259.0,0.91229424]
[1718885051746,0.00086,66260.0,66259.0,0.91129424]
[1718885051918,0.00186,66260.0,66259.0,0.92229424]
[1718885052500,0.00086,66260.0,66259.0,0.91129424]
[1718885052922,0.00186,66260.0,66259.0,1.43741624]
[1718885053129,0.00186,66260.0,66259.0,1.28649424]
[1718885053322,0.00186,66260.0,66259.0,1.28349424]
[1718885053526,0.00286,66260.0,66259.0,1.29649424]
[1718885054115,0.00186,66260.0,66259.0,1.23349424]
[1718885054367,0.00286,66260.0,66259.0,1.24749424]
[1718885054873,0.00186,66260.0,66259.0,1.23349424]
[1718885055101,0.00186,66260.0,66259.0,0.95829424]
[1718885055102,0.00086,66260.0,66259.0,0.95829424]
[1718885055300,0.00186,66260.0,66259.0,0.98629424]
[1718885055419,0.00186,66260.0,66259.0,0.93629424]
[1718885055989,0.00186,66260.0,66259.0,0.97229424]
[1718885056133,0.00186,66260.0,66259.0,0.93629424]
[1718885056343,0.00086,66260.0,66259.0,0.92229424]
[1718885056541,0.00086,66260.0,66259.0,0.97229424]
[1718885056761,0.1,66271.0,66262.0,0.02]
[1718885056956,0.01159572,66270.0,66263.0,0.15256112]
[1718885058151,0.01259572,66270.0,66263.0,0.16356112]
[1718885058399,0.01159572,66269.0,66263.0,0.16356112]
[1718885059083,0.01159572,66269.0,66264.0,0.32871799]
[1718885059266,0.01159572,66269.0,66268.0,0.02]
[1718885059464,0.01159572,66269.0,66268.0,0.15256112]
[1718885059888,0.01159572,66269.0,66268.0,0.17256112]
[1718885060085,0.001,66270.0,66268.0,0.15256112]
[1718885060296,0.03925555,66275.0,66269.0,0.15256112]
[1718885060496,0.01233871,66274.0,66269.0,0.15256112]
[1718885060798,0.01233871,66273.0,66269.0,0.15256112]
[1718885060998,0.01233871,66277.0,66269.0,0.17256112]
[1718885061173,0.19983871,66276.0,66270.0,0.00301764]
[1718885061372,0.11233871,66275.0,66271.0,0.15256112]
[1718885061577,0.01233871,66274.0,66271.0,0.15256112]
[1718885062693,0.01233871,66273.0,66271.0,0.15256112]
[1718885062876,0.01233871,66272.0,66271.0,0.15256112]
[1718885063281,0.01233871,66272.0,66271.0,0.16056112]
[1718885063687,0.01233871,66272.0,66271.0,0.15256112]
[1718885064074,0.1,66276.0,66271.0,0.15256112]
[1718885064075,0.01223182,66273.0,66271.0,0.15256112]
[1718885064299,0.01223182,66272.0,66271.0,0.15256112]
[1718885064493,0.01323182,66272.0,66271.0,0.16556112]
[1718885065305,0.01323182,66272.0,66271.0,0.17456112]
[1718885065792,0.01323182,66272.0,66271.0,0.16556112]
[1718885066132,0.01323182,66272.0,66271.0,0.17556112]
[1718885067180,0.01200579,66272.0,66271.0,0.17556112]
[1718885067777,0.01200579,66272.0,66271.0,0.53136112]
[1718885067978,0.001,66272.0,66271.0,0.53136112]
[1718885068741,0.001,66272.0,66271.0,0.51136112]
[1718885068990,0.001,66272.0,66271.0,0.17556112]
[1718885069366,0.01179835,66272.0,66271.0,0.17556112]
[1718885070238,0.01179835,66272.0,66271.0,0.023]
[1718885070446,0.14799835,66272.0,66271.0,0.023]
[1718885070649,0.24799835,66272.0,66271.0,0.023]
[1718885072164,0.42459835,66272.0,66271.0,0.023]
[1718885073385,0.44459835,66272.0,66271.0,0.023]
[1718885073718,0.42459835,66272.0,66271.0,0.01]
[1718885073961,0.42359835,66272.0,66271.0,0.01]
[1718885074159,0.43559835,66272.0,66271.0,0.011]
[1718885075111,0.42359835,66272.0,66271.0,0.01]
[1718885075289,0.42359835,66272.0,66271.0,0.011]
[1718885075458,0.43559835,66272.0,66271.0,0.011]
[1718885076073,0.43559835,66272.0,66271.0,0.001]
[1718885076272,0.43559835,66272.0,66260.0,0.476]
[1718885076273,0.02,66269.0,66260.0,0.476]
[1718885076474,4.14272335,66272.0,66260.0,0.476]
[1718885076475,0.3134,66261.0,66260.0,0.476]
[1718885076681,0.3134,66261.0,66248.0,0.45769034]
[1718885076682,0.42419835,66261.0,66248.0,0.45769034]
[1718885076886,0.11079835,66260.0,66248.0,0.47769034]
[1718885077041,0.11079835,66260.0,66247.0,0.6572]
[1718885077444,0.11079835,66260.0,66249.0,0.02]
[1718885078129,0.11079835,66260.0,66250.0,0.02]
[1718885078490,0.11079835,66260.0,66249.0,0.02]
[1718885078829,0.11079835,66260.0,66248.0,0.02]
[1718885080330,0.11079835,66260.0,66259.0,0.43113312]
[1718885080922,0.11079835,66260.0,66259.0,0.42813312]
[1718885081273,0.11079835,66260.0,66259.0,0.42913312]
[1718885081741,0.11079835,66260.0,66259.0,0.42813312]
[1718885082329,0.11179835,66260.0,66259.0,0.42813312]
[1718885082956,0.22303161,66260.0,66259.0,0.42813312]
[1718885083171,0.11079835,66260.0,66259.0,0.42813312]
[1718885083376,0.11179835,66260.0,66259.0,0.42813312]
[1718885083930,0.11179835,66260.0,66259.0,0.43013312]
[1718885084148,0.11231629,66260.0,66259.0,0.43013312]
[1718885086308,0.22454046,66260.0,66259.0,0.43013312]
[1718885086925,0.11231629,66260.0,66259.0,0.43013312]
[1718885087292,0.1118053,66260.0,66259.0,0.43013312]
[1718885087909,0.11034514,66260.0,66259.0,0.43013312]
[1718885088113,0.1103451,66260.0,66259.0,0.43013312]
[1718885092242,0.1103451,66260.0,66259.0,0.43107912]
[1718885095322,0.0103451,66260.0,66259.0,0.43107912]
[1718885095854,0.1103451,66260.0,66259.0,0.43107912]
[1718885096855,0.0103451,66260.0,66259.0,0.43107912]
[1718885097055,0.1103451,66260.0,66259.0,0.43107912]
[1718885098249,0.0103451,66260.0,66259.0,0.43107912]
[1718885100772,0.01034944,66260.0,66259.0,0.43107912]
[1718885101177,0.01034899,66260.0,66259.0,0.43107912]
[1718885102323,0.11034899,66260.0,66259.0,0.43107912]
[1718885102451,0.11034899,66260.0,66259.0,0.58364024]
[1718885102651,0.11034899,66260.0,66259.0,0.93334024]
[1718885102899,0.11034899,66260.0,66259.0,1.19454024]
[1718885102900,0.01034899,66260.0,66259.0,1.19454024]
[1718885103286,0.01034899,66260.0,66259.0,1.24454024]
[1718885103754,0.00934899,66260.0,66259.0,1.24454024]
[1718885104103,0.00086,66271.0,66270.0,0.3383]
[1718885104278,0.00086,66271.0,66270.0,0.49086112]
[1718885105980,0.00186,66271.0,66270.0,0.50486112]
[1718885106199,0.00086,66271.0,66270.0,0.50486112]
[1718885106524,0.00186,66271.0,66270.0,0.51886112]
[1718885106738,0.00186,66271.0,66270.0,0.50486112]
[1718885106937,0.00086,66271.0,66270.0,0.50486112]
[1718885107777,0.151755,66271.0,66270.0,0.50486112]
[1718885107985,0.251755,66271.0,66270.0,0.48486112]
[1718885108360,0.252678,66271.0,66270.0,0.028]
[1718885110052,0.252678,66271.0,66261.0,0.02]
[1718885110053,0.150916,66262.0,66261.0,0.02]
[1718885110181,0.1,66270.0,66261.0,0.15256112]
[1718885110386,0.150916,66262.0,66261.0,0.17256112]
[1718885111183,0.150916,66262.0,66261.0,0.15256112]
[1718885112429,0.150916,66262.0,66261.0,0.17256112]
[1718885112658,0.150916,66262.0,66261.0,0.18356112]
[1718885112890,0.151916,66262.0,66261.0,0.19656112]
[1718885113323,0.151916,66262.0,66261.0,0.17256112]
[1718885113324,0.150916,66262.0,66261.0,0.17256112]
[1718885113526,0.151916,66262.0,66261.0,0.28856112]
[1718885113756,0.151916,66262.0,66261.0,0.30056112]
[1718885113960,0.151916,66262.0,66261.0,0.62156112]
[1718885114347,0.001,66262.0,66261.0,0.62156112]
[1718885114549,0.151916,66262.0,66261.0,0.62156112]
[1718885114712,0.151916,66262.0,66261.0,0.78076112]
[1718885115035,0.150916,66262.0,66261.0,0.75476112]
[1718885115435,0.151916,66262.0,66261.0,0.78076112]
[1718885115637,0.150916,66262.0,66261.0,0.76876112]
[1718885115813,0.250897,66270.0,66269.0,0.3492]
[1718885116142,0.26025645,66270.0,66269.0,0.50176112]
[1718885116541,0.1,66278.0,66276.0,0.02]
[1718885116717,0.05347529,66284.0,66276.0,0.02]
[1718885116718,0.05347529,66284.0,66277.0,0.15256112]
[1718885116937,0.4942,66290.0,66277.0,0.15256112]
[1718885117137,0.0360448,66286.0,66277.0,0.15256112]
[1718885117317,0.00865,66286.0,66277.0,0.15256112]
[1718885117875,0.00865,66286.0,66277.0,0.45986112]
[1718885118102,0.00865,66286.0,66277.0,0.15256112]
[1718885119030,0.01465,66286.0,66277.0,0.15356112]
[1718885119271,0.01465,66286.0,66277.0,0.15456112]
[1718885121577,0.01465,66286.0,66281.0,0.1865]
[1718885121578,0.01428318,66286.0,66281.0,0.1865]
[1718885121757,0.01428318,66286.0,66283.0,0.1399]
[1718885121957,0.01428318,66286.0,66284.0,0.15557811]
[1718885122836,0.00828318,66286.0,66284.0,0.17557811]
[1718885123043,0.00828318,66286.0,66285.0,0.02]
[1718885123245,0.00928318,66286.0,66285.0,0.17557798]
[1718885123450,0.00828318,66286.0,66285.0,0.17557798]
[1718885123800,0.00828318,66286.0,66285.0,0.35977798]
[1718885125018,0.00928318,66286.0,66285.0,0.35977798]
[1718885125434,0.00828318,66286.0,66285.0,0.35076112]
[1718885125650,0.00928318,66286.0,66285.0,0.38476112]
[1718885127329,0.00928318,66286.0,66285.0,0.83916112]
[1718885127960,0.00928318,66286.0,66285.0,1.17072412]
[1718885128210,0.00928318,66286.0,66285.0,1.47245112]
[1718885128438,0.00928318,66286.0,66285.0,1.17072412]
[1718885128642,0.00928318,66286.0,66285.0,0.99002412]
[1718885128996,0.00928318,66286.0,66285.0,0.73716112]
[1718885129800,0.00928318,66286.0,66285.0,0.83916112]
[1718885130012,0.00928318,66286.0,66285.0,0.68716112]
[1718885130394,0.00928318,66286.0,66285.0,0.52796112]
[1718885130808,0.00928318,66286.0,66285.0,0.18056112]
[1718885131428,0.00800825,66286.0,66285.0,0.18056112]
[1718885131625,0.00800825,66286.0,66285.0,0.16656112]
[1718885131740,0.00800825,66286.0,66285.0,0.19478556]
[1718885131936,0.00800825,66286.0,66285.0,0.18078556]
[1718885132142,0.00700825,66286.0,66285.0,0.18078556]
[1718885132359,0.00800825,66286.0,66285.0,0.17978556]
[1718885132563,0.00800825,66286.0,66285.0,0.19378556]
[1718885132801,0.00700825,66286.0,66285.0,0.18178556]
[1718885133235,0.00800825,66286.0,66285.0,0.19578556]
[1718885134608,0.00800825,66286.0,66285.0,0.21578556]
[1718885135170,0.00800825,66286.0,66285.0,0.52698556]